[Event "3rd VIZAG GM-Open 2022"]
[Site "Visakapatnam"]
[Date "2022.06.16"]
[Round "9.2"]
[White "Savchenko, Boris"]
[Black "Gusain, Himal"]
[Result "1-0"]
[ECO "B02"]
[WhiteElo "2524"]
[BlackElo "2396"]
[Annotator "TA"]
[PlyCount "131"]
[EventDate "2022.06.13"]
[EventType "swiss"]
[EventCountry "IND"]
[SourceTitle "playchess.com"]
[Source "ChessBase"]
[SourceQuality "1"]
[TimeControl "5400+30"]

{[%evp 9,131,-23,-1,-14,-19,-39,0,-23,0,0,0,0,0,-13,-1,-21,0,0,62,79,72,84,74,88,68,76,72,60,108,107,108,19,17,12,25,23,14,26,23,0,0,0,3,0,0,0,17,10,43,47,81,27,27,27,62,33,34,28,29,28,83,83,104,0,71,0,93,84,131,125,116,75,280,281,247,259,246,229,341,374,353,287,382,368,340,337,325,317,300,300,592,592,454,218,179,179,214,211,639,619,1710,1614,1527,1266,2157,2147,1878,1712,1983,2312,2571,2471,2433,2401,29965,29966,29970,29971,29974,29972,29969,29969,29983,12027]} 1. e4 {[%emt 0:07:29][%cal Be2e4,Be4e5][%mdl 32]} Nf6 {[%emt 0:00:18]} 2. e5 {[%emt 0:06:05]} Nd5 {[%emt 0:00:09]} 3. Nc3 {[%emt 0:02:30]} Nxc3 {[%emt 0:01:27]} 4. bxc3 {[%emt 0:00:07]} d5 {[%emt 0:16:39]} 5. Rb1 {[%emt 0:14:26]} c5 {[%emt 0:02:35] [#]} 6. Bb5+ $146 {[%emt 0:01:01] B02: Alekhine's Defence: Chase Variation and lines with early Nc3.} ({Predecessor:} 6. d4 Nc6 7. Nf3 Qc7 8. Be2 Bf5 9. Nh4 Be4 10. e6 fxe6 11. O-O cxd4 12. cxd4 O-O-O {1-0 (32) Castano,D (2316)-Castro Rojas,O (2367) El Bagre 2010}) 6... Nc6 {[%emt 0:00:27]} 7. d4 {[%emt 0:00:23]} Qc7 {[%emt 0:04:38]} 8. dxc5 {[%emt 0:05:52] The position is equal.} Qxe5+ {[%emt 0:09:29]} (8... e6 $5 {[%cal Rc7e5]}) 9. Ne2 {[%emt 0:00:13]} e6 {[%emt 0:02:25]} 10. Bf4 {[%emt 0:06:07]} Qf6 {[%emt 0:00:22]} 11. c4 {[%emt 0:09:41]} Bxc5 {[%emt 0:15:05]} 12. cxd5 {[%emt 0:00:52]} exd5 {[%emt 0:00:06]} 13. Qxd5 {[%emt 0:00:51]} Be7 {[%emt 0:01:12]} (13... Bb6 $11) 14. Be5 $1 $36 {[%emt 0:11:15][%mdl 2048] White is really pushing.} Qe6 {[%emt 0:00:56]} 15. Nf4 {[%emt 0:00:59]} Qxd5 {[%emt 0:17:01]} 16. Nxd5 {[%emt 0:00:09]} Bd8 {[%emt 0:00:03]} 17. Bxg7 {[%emt 0:00:54] White is much more active.} Rg8 {[%emt 0:00:03]} 18. Be5 {[%emt 0:00:19]} a6 {[%emt 0:03:44]} (18... Be6 $14 {is more appropriate.} 19. Nb4 a6 20. Bxc6+ (20. Nxc6 axb5 21. Nxd8 Rxd8 $11) 20... bxc6) 19. Bxc6+ $16 {[%emt 0:05:54]} bxc6 {[%emt 0:00:03]} 20. Nb6 {[%emt 0:04:16]} (20. Ne3 $1 $16) 20... Bxb6 $11 {[%emt 0:00:06]} 21. Rxb6 {[%emt 0:00:06]} Rg5 {[%emt 0:00:04]} 22. Bd4 {[%emt 0:03:18]} Rxg2 {[%emt 0:01:37]} 23. Kd2 {[%emt 0:01:37]} Be6 {[%emt 0:04:13]} 24. a4 {[%emt 0:01:39]} Rg4 {[%emt 0:04:38]} 25. c3 {[%emt 0:00:49]} c5 {[%emt 0:00:38]} 26. Bxc5 {[%emt 0:00:15]} Rxa4 {[%emt 0:00:41]} 27. Rg1 {[%emt 0:00:30]} Ra2+ {[%emt 0:04:22]} 28. Ke3 {[%emt 0:00:27]} O-O-O {[%emt 0:05:18]} (28... Kd7 {feels hotter.} 29. Rd1+ Kc7 30. Rdb1 Re8) 29. Bd4 {[%emt 0:05:54]} Bd5 {[%emt 0:01:28]} 30. Rg7 {[%emt 0:00:53]} (30. Rg5 $16) 30... Re8+ {[%emt 0:01:14]} 31. Kf4 {[%emt 0:00:19]} Kc7 {[%emt 0:01:03] Hoping for ...Re4+.} 32. Rb1 {[%emt 0:02:52]} (32. Rxh7 $2 Re4+ 33. Kg5 Rxd4 $1 {[%mdl 512]} 34. Rxa6 Rxa6 $19) (32. Rb4 $5 {[%cal Rg7h7]}) 32... h5 {[%emt 0:01:29]} 33. Kg5 {[%emt 0:00:54]} Rae2 {[%emt 0:01:12]} 34. h4 {[%emt 0:00:41]} R2e4 {[%emt 0:01:33]} (34... Re1 $11 {remains equal.} 35. Rxe1 Rxe1) 35. Ra1 $16 {[%emt 0:02:11]} (35. Kxh5 $6 Rh8+ 36. Kg5 Rexh4 $11) 35... Kb7 {[%emt 0:00:31]} 36. Rb1+ {[%emt 0:01:44]} Kc7 $1 {[%emt 0:00:08]} 37. Ra1 {[%emt 0:01:58]} ({Reject} 37. Kxh5 $6 Rh8+ 38. Kg5 Rexh4 $11) 37... Kb7 $1 {[%emt 0:00:08]} 38. Ra5 {[%emt 0:00:17]} Bb3 {[%emt 0:01:15]} (38... Rd8 $142) 39. f3 {[%emt 0:00:36]} ({Much worse is} 39. Kxh5 $6 Rh8+ 40. Kg5 Rexh4 $11) 39... Re2 {[%emt 0:00:29]} 40. Kf4 {[%emt 0:00:12]} Rh8 $2 {[%emt 0:00:59] [#] Black cannot hold the game after this.} (40... Rh2 $16 {might work better.}) 41. Rg1 $1 $18 {[%emt 0:00:44]} Rb8 {[%emt 0:00:23]} 42. Rb1 {[%emt 0:01:33] Prevents Rb2.} ({Don't do} 42. Rxh5 Bc2 43. Rhg5 Rbe8) 42... Kc8 {[%emt 0:00:04]} 43. Rxh5 {[%emt 0:00:27] Threatens to win with Rh8+.} Rb7 {[%emt 0:00:41]} (43... Re8 $142 44. Ra5 Bc2) 44. Rc5+ {[%emt 0:00:59]} Kb8 {[%emt 0:00:21]} 45. h5 {[%emt 0:00:54]} Bc2 {[%emt 0:00:48]} 46. Be5+ {[%emt 0:01:09]} Ka7 {[%emt 0:00:03]} 47. Rxb7+ {[%emt 0:00:06]} Kxb7 {[%emt 0:00:04][%mdl 4096] Endgame KRB-KRB} 48. Rc7+ {[%emt 0:00:04]} Kb6 {[%emt 0:00:04][%cal Oe2e5] And now ...Rxe5! would win.} 49. Rxf7 {[%emt 0:00:05] Strongly threatening h6.} a5 $2 {[%emt 0:00:14]} (49... Rh2 50. Kg4 Rg2+ 51. Kh4 Kc6) 50. h6 {[%emt 0:00:35]} Rh2 {[%emt 0:00:04]} 51. Rf6+ {[%emt 0:00:41]} (51. Kg5 $142 Rg2+ 52. Kh4) 51... Kb5 {[%emt 0:00:14]} 52. Ke3 {[%emt 0:00:11]} Rh5 {[%emt 0:00:48]} 53. Kd4 {[%emt 0:00:16]} Rh4+ $2 {[%emt 0:01:15]} (53... Bb3 54. Bd6 Rd5+ 55. Ke3 Bc2) 54. f4 {[%emt 0:00:08] c4+ is the strong threat.} Rh3 {[%emt 0:00:05]} 55. c4+ {[%emt 0:00:11][%cal Bc3c4,Bc4c5,Bc5c6,Bc6c7][%mdl 32]} Kb4 {[%emt 0:00:24]} 56. Rb6+ {[%emt 0:00:10]} Ka4 {[%emt 0:00:06]} 57. c5 {[%emt 0:00:29]} Bh7 {[%emt 0:00:38]} 58. Bg7 {[%emt 0:00:41]} Rh1 {[%emt 0:01:31]} 59. c6 {[%emt 0:00:15]} Rc1 {[%emt 0:00:04]} 60. Kd5 {[%emt 0:00:24]} Rc2 {[%emt 0:00:18]} 61. Kd6 {[%emt 0:00:34]} Rd2+ {[%emt 0:00:26]} 62. Ke7 {[%emt 0:00:07] White mates.} Rc2 {[%emt 0:00:07]} 63. Be5 {[%emt 0:00:06]} Ka3 {[%emt 0:00:08]} 64. c7 {[%emt 0:00:07]} a4 {[%emt 0:00:19]} 65. Rb8 {[%emt 0:00:06]} Bf5 {[%emt 0:00:07]} 66. h7 {[%emt 0:00:06] Weighted Error Value: White=0.18 (very precise) /Black=0.35} (66. Kf6 $142 Bh7 67. f5 Rxc7 68. Bxc7 Ka2 69. Rh8 Kb2 70. Be5+ Kb3 71. Rxh7) 1-0

[Event "3rd VIZAG GM-Open 2022"]
[Site "Visakapatnam"]
[Date "2022.06.16"]
[Round "9.3"]
[White "Audi Ameya"]
[Black "Harsha Bharathakoti"]
[Result "0-1"]
[ECO "B33"]
[WhiteElo "2389"]
[BlackElo "2547"]
[Annotator "TA"]
[PlyCount "90"]
[EventDate "2022.06.13"]
[EventType "swiss"]
[EventCountry "IND"]
[SourceTitle "playchess.com"]
[Source "ChessBase"]
[SourceQuality "1"]
[TimeControl "5400+30"]

{[%evp 17,89,43,62,41,49,43,52,0,0,6,8,-16,-4,-31,-36,-33,-34,-29,-29,-29,-31,-39,-33,-38,-22,-27,-25,-28,-25,-27,-23,-54,-54,-89,-89,-133,-135,-185,-165,-206,-204,-198,-147,-215,-183,-176,-158,-154,-158,-397,-381,-369,-365,-374,-269,-29984,-29985,-29985,0,-357,0,-29985,-29986,-29990,-29991,-29991,-4960,-29992,-29993,-29993,-29994,-29994,-29995,-29999]} 1. e4 {[%emt 0:00:00]} c5 {[%emt 0:01:25]} 2. Nf3 {[%emt 0:00:03]} e6 {[%emt 0:01:08]} 3. d4 {[%emt 0:00:09]} cxd4 {[%emt 0:00:04]} 4. Nxd4 {[%emt 0:00:03]} Nf6 {[%emt 0:00:04]} 5. Nc3 {[%emt 0:00:26]} Nc6 {[%emt 0:00:03]} 6. Ndb5 {[%emt 0:00:32]} d6 {[%emt 0:00:06]} 7. Bf4 {[%emt 0:00:05]} e5 {[%emt 0:00:05]} 8. Bg5 {[%emt 0:00:05]} a6 {[%emt 0:00:04]} 9. Na3 {[%emt 0:00:04]} Be6 {[%emt 0:00:04]} 10. Nc4 {[%emt 0:01:53] B33: Sicilian: Pelikan and Sveshnikov Variations.} Rb8 $1 {[%emt 0:00:19][%mdl 4] is more profitable than 10...Rc8 at the moment.} 11. Bxf6 {[%emt 0:14:17]} (11. g3 {is more complex.} Nd4 12. Nd5 Be7 13. Bxf6 Bxf6 14. Nce3) 11... Qxf6 {[%emt 0:00:06]} 12. Nb6 {[%emt 0:10:55]} ({Better is} 12. Nxd6+ $14 Bxd6 13. Qxd6) 12... Qg6 $11 {[%emt 0:09:30]} 13. h4 {[%emt 0:09:49]} Be7 {[%emt 0:04:37]} 14. Qd2 {[%emt 0:01:00] [#]} Bd8 $146 {[%emt 0:15:21]} ({Predecessor:} 14... h5 15. Nbd5 Bd8 16. a3 Qh6 17. Qxh6 Rxh6 18. Bd3 Rg6 19. Ne3 Rh6 20. Ncd5 g6 21. O-O-O b5 {0-1 (49) Cech,D (2114)-Kernazhitsky,L (2270) Tatranska Lomnica 2017}) 15. Nc4 {[%emt 0:18:20]} O-O {[%emt 0:03:15]} 16. h5 {[%emt 0:01:24]} Qg5 {[%emt 0:26:32]} 17. Qxg5 {[%emt 0:00:33]} Bxg5 {[%emt 0:01:29]} 18. Bd3 {[%emt 0:00:17]} b5 {[%emt 0:08:03]} 19. Ne3 {[%emt 0:10:35]} Bxe3 {[%emt 0:00:29]} 20. fxe3 {[%emt 0:00:02]} Ne7 {[%emt 0:04:40][%cal Bc6e7,Be7g8,Bg8f6][%mdl 32]} 21. O-O-O {[%emt 0:09:49]} h6 {[%emt 0:07:41]} 22. a3 {[%emt 0:03:34]} Rfd8 {[%emt 0:03:15]} 23. Rd2 {[%emt 0:03:29]} Kf8 {[%emt 0:00:15]} 24. Be2 {[%emt 0:00:58]} Ng8 {[%emt 0:02:38]} 25. b4 {[%emt 0:04:43]} Nf6 {[%emt 0:03:08] White must now prevent ...Rbc8.} 26. Bf3 {[%emt 0:00:04]} Rbc8 {[%emt 0:04:32]} 27. Nd1 {[%emt 0:02:18]} (27. Ne2 $17) 27... Rc4 {[%emt 0:01:12]} 28. Nb2 {[%emt 0:00:33]} Rc3 {[%emt 0:00:05]} 29. Rd3 {[%emt 0:00:03]} Rdc8 {[%emt 0:00:03]} (29... Rc6 $19 30. Kb1 Rdc8) 30. Kb1 {[%emt 0:03:11]} (30. Rxc3 $17 {keeps fighting.} Rxc3 31. Rd1) 30... Rxc2 {[%emt 0:04:00]} 31. Rxd6 {[%emt 0:00:01]} R2c3 {[%emt 0:00:33]} 32. Rxa6 {[%emt 0:01:07]} Rxe3 {[%emt 0:00:04] Black is much more active.} 33. Ra5 $2 {[%emt 0:00:25] [#]} (33. Nd1 $17 {is the only way for White.} Rb3+ 34. Nb2) 33... Nxe4 $19 {[%emt 0:00:22]} 34. Bxe4 {[%emt 0:00:14]} Rxe4 {[%emt 0:00:03]} 35. Rxb5 {[%emt 0:00:03]} Re3 {[%emt 0:01:37]} (35... Re2 $2 36. Rc5 $19) 36. a4 $2 {[%emt 0:01:56] [#]} (36. Ra5 $19) 36... Bf5+ {[%emt 0:00:05]} 37. Ka2 {[%emt 0:00:02]} Be6+ $2 {[%emt 0:00:05]} (37... Rcc3 {mates} 38. Nc4 Rxc4 39. Ka1 Rc2 40. g4 Be4 41. Rxe5 Ra3+ 42. Kb1 Rb3+ 43. Ka1 Bxh1 44. Rc5 Re2 45. Rc8+ Ke7 46. Rc7+ Kd6 47. Rc4 Rg3 48. Rc1 Be4 49. Rd1+ Ke7 50. Rd7+ Kxd7 51. b5 Rg1#) 38. Kb1 {[%emt 0:00:03]} Bf5+ $2 {[%emt 0:00:58]} (38... Ra3 $19 39. Nd1 (39. Rxe5 $2 Ba2+ 40. Ka1 Bb3+ 41. Kb1 Bc2+ 42. Kc1 Ra1+ 43. Kd2 Rxh1 $19) 39... Rxa4) 39. Ka2 {[%emt 0:00:02]} Rcc3 {[%emt 0:00:06][%csl Ge3][%cal Rc3a3]} 40. Nd1 {[%emt 0:03:32]} Ra3+ {[%emt 0:01:03]} 41. Kb2 {[%emt 0:00:03]} Reb3+ {[%emt 0:00:03]} 42. Kc1 {[%emt 0:00:03]} Ra2 {[%emt 0:00:02][%csl Gf5][%cal Rb3b1] Black mates.} 43. Rb8+ {[%emt 0:01:44]} Ke7 {[%emt 0:00:03][%csl Gf5][%cal Rb3b1]} 44. Rb7+ {[%emt 0:00:02]} Kf6 {[%emt 0:00:09][%csl Gf5][%cal Rb3b1]} 45. Rf1 {[%emt 0:00:14]} Rb1# {[%emt 0:03:34] Black took control after the opening.  Weighted Error Value: White=0.45/Black=0.37} 0-1

[Event "3rd VIZAG GM-Open 2022"]
[Site "Visakapatnam"]
[Date "2022.06.16"]
[Round "9.4"]
[White "Mirzoev, Azer"]
[Black "Amonatov, Farrukh"]
[Result "0-1"]
[ECO "A49"]
[WhiteElo "2476"]
[BlackElo "2622"]
[Annotator "TA"]
[PlyCount "98"]
[EventDate "2022.06.13"]
[EventType "swiss"]
[EventCountry "IND"]
[SourceTitle "playchess.com"]
[Source "ChessBase"]
[SourceQuality "1"]
[TimeControl "5400+30"]

{[%evp 10,98,19,0,29,11,25,14,12,14,48,25,47,42,47,47,47,43,51,47,58,47,47,39,67,60,134,129,124,118,113,120,169,74,128,114,119,123,122,118,125,127,110,118,122,106,121,109,135,140,138,124,143,92,95,97,100,100,174,136,170,74,163,115,118,122,122,115,117,0,0,0,0,-8,-8,-8,-8,-8,-9,-9,-12,0,0,-509,-491,-489,-195,-29989,-29990,-29990,-29991]} 1. d4 {[%emt 0:00:04]} Nf6 {[%emt 0:00:06]} 2. Nf3 {[%emt 0:00:03][%cal Bg1f3,Bf3e1,Be1d3][%mdl 32]} g6 {[%emt 0:00:04]} 3. g3 {[%emt 0:00:05]} Bg7 {[%emt 0:00:08]} 4. Bg2 {[%emt 0:00:03]} O-O {[%emt 0:00:10]} 5. O-O {[%emt 0:00:05]} d6 {[%emt 0:00:38]} 6. b3 {[%emt 0:00:10]} b5 {[%emt 0:02:06] A49: 1 d4 Nf6 2 Nf3 g6 3 g3: Anti-King's Indian systems.} 7. Ne1 {[%emt 0:05:05]} c6 {[%emt 0:00:29]} 8. Bb2 {[%emt 0:00:03]} a5 {[%emt 0:01:01] [#] The position is equal.} 9. Nd2 $146 {[%emt 0:03:31]} ({Predecessor:} 9. Nd3 a4 10. c4 bxc4 11. bxc4 Bf5 12. Na3 Qc7 13. Re1 Be4 14. f3 Bxd3 15. Qxd3 {0-1 (56) Diermair,A (2455)-Pichot,A (2630) Belgrade 2021}) 9... Bb7 {[%emt 0:04:06]} 10. Nd3 {[%emt 0:00:22]} Nbd7 {[%emt 0:02:42]} 11. c4 {[%emt 0:03:06]} bxc4 {[%emt 0:06:23]} 12. bxc4 {[%emt 0:01:39]} Qc7 {[%emt 0:01:55]} 13. Rb1 {[%emt 0:05:46]} Rfb8 {[%emt 0:03:21]} 14. Qc2 {[%emt 0:01:50]} e6 {[%emt 0:07:01]} 15. Rfc1 {[%emt 0:01:42]} h5 {[%emt 0:04:30]} 16. h3 {[%emt 0:00:47]} a4 {[%emt 0:08:06]} 17. Ba3 {[%emt 0:07:04]} Nh7 {[%emt 0:07:24]} (17... Bf8 $14) 18. Ne4 $1 $16 {[%emt 0:09:07]} Bf8 {[%emt 0:05:16]} (18... c5 $2 19. Rxb7 $1 {[%mdl 512]} (19. dxc5 Nxc5 20. Nexc5 dxc5 $16) 19... Qxb7 20. Nxd6 $18) 19. c5 {[%emt 0:00:39][%cal Rc5d6]} d5 {[%emt 0:01:02]} 20. Nd6 {[%emt 0:00:07][%cal Od6f7]} Bg7 {[%emt 0:04:58]} (20... Bh6 $16) 21. Bb2 {[%emt 0:11:21]} (21. Rxb7 $6 Rxb7 22. Nxb7 Qxb7 $16) (21. Rd1 $18) 21... a3 {[%emt 0:07:08]} ({Better is} 21... Ba6) 22. Bc3 {[%emt 0:00:48]} Nhf6 {[%emt 0:00:04]} 23. e3 {[%emt 0:01:25]} Ne8 {[%emt 0:02:01]} 24. Nxb7 {[%emt 0:02:39]} Rxb7 {[%emt 0:00:47]} 25. Rxb7 {[%emt 0:00:06]} Qxb7 {[%emt 0:00:07]} 26. Rb1 {[%emt 0:00:02]} Qc8 {[%emt 0:02:19]} 27. Bf1 {[%emt 0:01:47]} Nef6 {[%emt 0:03:19]} 28. Be1 {[%emt 0:05:06]} Qc7 {[%emt 0:03:10]} 29. f4 $1 {[%emt 0:00:57] Prevents e5.} Ne4 {[%emt 0:24:39]} 30. Bg2 {[%emt 0:00:45]} f5 {[%emt 0:00:00]} 31. Rb3 {[%emt 0:02:07]} ({White should try} 31. Rb4) 31... g5 {[%emt 0:00:00]} 32. fxg5 {[%emt 0:07:58]} e5 {[%emt 0:00:00]} 33. dxe5 {[%emt 0:00:24]} Nxe5 {[%emt 0:00:00]} (33... Bxe5 $16 34. Bxe4 fxe4) 34. Nf4 $18 {[%emt 0:00:16]} Qf7 {[%emt 0:00:00]} 35. Qe2 {[%emt 0:08:50]} (35. Qb1 $18 {is more deadly.}) 35... d4 {[%emt 0:00:00]} (35... Nxg5 $16 36. Qxh5 Qxh5 37. Nxh5 Ngf3+ 38. Bxf3 Nxf3+ 39. Kf2 Ng5) 36. exd4 {[%emt 0:10:12]} (36. Qc2 $18) 36... Qxb3 $16 {[%emt 0:00:00]} 37. axb3 {[%emt 0:02:30]} a2 {[%emt 0:00:00]} 38. dxe5 {[%emt 0:05:53]} a1=Q {[%emt 0:00:00]} 39. Kh2 {[%emt 0:00:13]} (39. Nxh5 Ra2 40. Qc4+ Kh8 $15) ({White has to play} 39. Bxe4 $16 Qd4+ 40. Bf2 Qxe4 41. Qxe4 fxe4 42. e6 (42. Nxh5 Ra1+ 43. Kg2 Bxe5 $11)) 39... h4 $11 {[%emt 0:00:00]} 40. Qc4+ {[%emt 0:01:52]} (40. gxh4 Bxe5 41. Bxe4 Bxf4+ 42. Kg2 (42. Bg3 Bxg3+ 43. Kxg3 Qe5+ 44. Kf3 fxe4+ 45. Qxe4 Rf8+ 46. Ke3 Qg3+ 47. Ke2 Rf2+ 48. Kd1 Qg1+ 49. Qe1 Rf1) 42... fxe4 43. Qxe4 Qb2+ 44. Bf2 Be5 45. Qg6+ (45. Qxc6 $2 Rf8 $19) 45... Bg7 46. Qxc6 (46. Qe6+ $2 Kh8 $19) 46... Rf8 47. Qe6+ Kh8 $19) 40... Kh8 {[%emt 0:00:00]} 41. Nd3 {[%emt 0:01:41]} (41. Ng6+ $2 Kh7 42. Nxh4 Qxe1 43. g6+ Kh8 44. Nxf5 Ra2 $19) 41... hxg3+ {[%emt 0:00:53]} 42. Bxg3 {[%emt 0:00:19]} Nxg3 {[%emt 0:00:24] Chess con chili.} 43. Kxg3 {[%emt 0:02:32] Qf4 is the strong threat.} Rd8 $36 {[%emt 0:01:08][%mdl 2048] Threatens to win with ...Qd1. White is under pressure.} 44. Qh4+ $1 {[%emt 0:00:46]} (44. Bxc6 Rd4 45. Qe6 Rxd3+ 46. Kh4 Qxe5 47. Qe8+ Qxe8 48. Bxe8 Bd4 $19) 44... Kg8 {[%emt 0:00:01]} 45. Qc4+ {[%emt 0:00:19]} Kf8 {[%emt 0:00:01] Strongly threatening ...Qd1.} 46. h4 $2 {[%emt 0:00:24][%mdl 8192]} (46. Bxc6 Rd4 47. Qe6 Qg1+ 48. Bg2 f4+ 49. Kh4 f3+ 50. Nf4 Rxf4+ 51. Kh5 fxg2 $19) (46. Kf2 $1 $11 {and White has nothing to worry.}) 46... Rd4 $19 {[%emt 0:00:45]} 47. Qc2 {[%emt 0:00:18] [#]} Qg1 $2 {[%emt 0:01:21]} ({But not} 47... Rg4+ $2 48. Kh3 Qd4 49. Bf3 (49. Qe2 $2 Rxh4+ 50. Kg3 Rg4+ 51. Kh3 Rxg5 $19) 49... Bxe5 50. Nxe5 Rxh4+ 51. Kg2 Qxe5 52. Qd1 $19) (47... Bxe5+ $1 {[%mdl 512]} 48. Kf2 (48. Kh3 $2 Qg1 $19) (48. Nxe5 Qe1+) 48... Rxh4) 48. Nf2 $2 {[%emt 0:00:44]} ({Don't blunder} 48. Qe2 $2 Rg4+ 49. Kh3 {[#]} Rxh4+ $3 {[%mdl 512]} 50. Kg3 Re4 $19) (48. Kf3 $19) 48... Bxe5+ {[%emt 0:00:14]} 49. Kf3 {[%emt 0:00:57]} Rf4+ {[%emt 0:00:09][%mdl 64] Deflection. What a bad dream for White.  Weighted Error Value: White=0.35/Black=0.23 (precise)} 0-1

[Event "3rd VIZAG GM-Open 2022"]
[Site "Visakapatnam"]
[Date "2022.06.16"]
[Round "9.5"]
[White "Mitrabha, Guha"]
[Black "Kaustuv, Kundu"]
[Result "1-0"]
[ECO "A46"]
[WhiteElo "2500"]
[BlackElo "2327"]
[Annotator "TA"]
[PlyCount "97"]
[EventDate "2022.06.13"]
[EventType "swiss"]
[EventCountry "IND"]
[SourceTitle "playchess.com"]
[Source "ChessBase"]
[SourceQuality "1"]
[TimeControl "5400+30"]

{[%evp 9,97,10,14,22,15,0,0,-9,25,18,20,0,24,0,0,0,16,0,47,-64,-63,-72,-72,-90,-75,-72,-46,-57,-54,-150,-159,-216,-114,-108,-103,-112,-104,-158,-140,-132,-149,-141,-139,-260,-190,-212,-118,-94,21,16,16,25,36,25,37,39,97,88,135,145,136,147,170,170,162,170,165,162,227,227,229,230,230,230,273,191,199,199,641,641,631,625,595,516,821,799,800,767,756,739]} 1. d4 {[%emt 0:05:16]} d5 {[%emt 0:00:09]} 2. Nf3 {[%emt 0:00:37]} e6 {[%emt 0:00:07]} 3. g3 {[%emt 0:00:12]} b5 {[%emt 0:04:49]} 4. Bg2 {[%emt 0:00:02]} Bb7 {[%emt 0:00:50]} 5. O-O {[%emt 0:00:08]} Nf6 {[%emt 0:00:06]} 6. a4 {[%emt 0:01:46] A46: 1 d4 Nf6 2 Nf3 e6: Torre, London and Colle Systems.} b4 {[%emt 0:01:31]} 7. a5 {[%emt 0:00:23][%cal Oc2c4]} Be7 {[%emt 0:08:19]} 8. c3 {[%emt 0:00:30] The position is equal.} bxc3 {[%emt 0:00:16]} 9. Nxc3 {[%emt 0:01:30]} O-O {[%emt 0:00:18] [#]} 10. Qa4 $146 {[%emt 0:08:53]} ({Predecessor:} 10. Bf4 Na6 11. Rc1 c5 12. dxc5 Qxa5 13. Nd4 Nxc5 14. Ncb5 Rfc8 15. b4 Qb6 16. bxc5 Bxc5 {0-1 (30) Blohberger,F (2504)-Vusatiuk,V (2308) Chess.com INT 2022}) 10... Na6 {[%emt 0:03:21]} 11. Ne5 {[%emt 0:09:51]} c5 {[%emt 0:06:18]} 12. Be3 {[%emt 0:00:56]} Rb8 {[%emt 0:08:00]} 13. Rfc1 {[%emt 0:09:44]} Ba8 {[%emt 0:06:15]} (13... Bd6 $11) 14. Rcb1 {[%emt 0:35:42]} (14. dxc5 $1 $14 Rb4 15. Qd1) 14... Bd6 $15 {[%emt 0:22:54] Strongly threatening ...Rb4.} 15. Nf3 {[%emt 0:12:26]} Ng4 {[%emt 0:06:53]} 16. Bg5 {[%emt 0:01:30]} f6 {[%emt 0:00:39]} 17. Bc1 {[%emt 0:00:34]} Rb4 {[%emt 0:00:53]} 18. Qd1 {[%emt 0:00:18]} cxd4 {[%emt 0:01:34]} 19. Nxd4 {[%emt 0:00:04]} ({White should play} 19. Na2 $1 $15) 19... Nxf2 $1 $17 {[%emt 0:00:17]} 20. Qe1 {[%emt 0:01:58]} (20. Qd2 $17 Qd7 21. e3 (21. Kxf2 $2 Rxd4 22. Qc2 Nb4 $19)) 20... Bc5 {[%emt 0:04:11]} (20... Rxd4 $19 21. Qxf2 Rb4) 21. e3 {[%emt 0:00:02]} Nd3 {[%emt 0:02:04]} 22. Qe2 {[%emt 0:02:37]} Nxc1 {[%emt 0:01:54]} (22... Bxd4 23. exd4 Nxc1 24. Qxe6+ (24. Qxa6 Nb3 $17) 24... Kh8 25. Rxc1 $15) 23. Qxa6 {[%emt 0:00:54]} (23. Rxc1 $142 Qd6 24. Rc2) 23... Bxd4 {[%emt 0:02:15]} 24. exd4 {[%emt 0:00:02]} Nb3 {[%emt 0:00:13]} 25. Qxe6+ {[%emt 0:00:53]} Kh8 {[%emt 0:00:06]} 26. Ra2 {[%emt 0:00:51]} (26. Ra4 $17 {was the only defense.} Rxa4 27. Nxa4) 26... Nxd4 {[%emt 0:00:19]} 27. Qa6 {[%emt 0:00:06]} Nf5 {[%emt 0:04:18]} (27... Qe7 $19 {And now ...Rc4 would win.} 28. Qf1 Qc5) 28. Qxa7 {[%emt 0:00:30] [#]} (28. Bh3 $2 d4 29. Qd3 (29. Bxf5 $2 dxc3 30. bxc3 Rxb1+ 31. Bxb1 Qd5 $19) 29... Ne3 $19) 28... d4 {[%emt 0:01:20]} (28... Re8 $1 $17 {Threatens to win with ...Rb8.} 29. Ra4 Rb8) 29. Qxa8 $11 {[%emt 0:02:37]} (29. Qc5 $2 {[#]} dxc3 $1 30. Qxb4 Bxg2 31. bxc3 (31. Kxg2 $2 Re8 $19) 31... Ba8 $19) 29... Qxa8 {[%emt 0:02:43]} 30. Bxa8 {[%emt 0:00:02]} Rxa8 {[%emt 0:05:04]} 31. Ne4 {[%emt 0:00:56]} h5 {[%emt 0:02:41]} 32. Nc5 {[%emt 0:00:43]} Nd6 {[%emt 0:01:25]} ({Better is} 32... Ne7 $14) 33. b3 {[%emt 0:00:03][%cal Bb2b3,Bb3b4,Bb4b5][%mdl 32]} Rb5 {[%emt 0:01:22]} ({Black should try} 33... Kg8) 34. b4 $16 {[%emt 0:00:02] White is more active.} Nc4 {[%emt 0:00:19]} 35. a6 {[%emt 0:02:10]} Ra7 {[%emt 0:00:13]} 36. Kf2 {[%emt 0:00:25]} Kh7 {[%emt 0:01:40]} 37. Ke2 {[%emt 0:00:42]} Ne5 {[%emt 0:00:19]} 38. Ra5 {[%emt 0:01:05]} Rb6 {[%emt 0:01:43]} (38... d3+ {is a better defense.} 39. Nxd3 Rxa5 40. bxa5 Rxa6) 39. b5 $18 {[%emt 0:01:29]} Nc4 {[%emt 0:00:49]} 40. Ra4 {[%emt 0:00:19]} Nd6 {[%emt 0:00:08]} 41. Rab4 {[%emt 0:00:15]} h4 {[%emt 0:01:27]} 42. Kd3 {[%emt 0:00:07]} ({Don't do} 42. Rxd4 $6 hxg3 43. hxg3 (43. Rh4+ Kg6 $16) 43... Rxb5 $16) 42... hxg3 {[%emt 0:00:16]} 43. hxg3 {[%emt 0:00:02]} Re7 $2 {[%emt 0:00:23]} (43... Kg6 44. g4 Kh7 45. Kxd4 Kg6) 44. Na4 {[%emt 0:00:51] White is clearly winning.} Re3+ {[%emt 0:00:24]} 45. Kxd4 {[%emt 0:00:39]} Nf5+ {[%emt 0:00:14]} 46. Kc5 {[%emt 0:00:01]} Rd6 {[%emt 0:00:22] [#]} (46... Rb8 $142 47. a7 Re5+ 48. Kc4 Rc8+ 49. Kb3 Ra8) 47. Rh4+ $1 {[%emt 0:00:22][%mdl 512]} Kg6 {[%emt 0:00:13]} 48. Rg4+ {[%emt 0:00:11]} Kf7 {[%emt 0:00:23]} 49. a7 {[%emt 0:00:30] Never resign too early!  Weighted Error Value: White=0.18 (very precise) /Black=0.30} 1-0